[Event "Mitropa Cup Open 2024"]
[Site "Apolda"]
[Date "2024.02.23"]
[Round "9.4"]
[White "Pasztor, Balazs"]
[Black "Olenik Campa, Rudi"]
[Result "1-0"]
[ECO "B31"]
[WhiteElo "2395"]
[BlackElo "2299"]
[Annotator "TA"]
[PlyCount "49"]
[EventDate "2024.02.15"]
[EventType "team-tourn"]
[EventCountry "GER"]
[SourceTitle "playchess.com"]
[Source "ChessBase"]
[SourceQuality "1"]
[WhiteTeam "Hungary"]
[BlackTeam "Slovenia"]
[WhiteTeamCountry "HUN"]
[BlackTeamCountry "SLO"]
[TimeControl "40/5400+30:1800+30"]

{[%evp 10,49,29,19,15,15,18,12,58,70,87,89,75,82,90,80,114,73,81,79,104,89,105,119,248,236,247,230,260,250,317,299,378,341,1397,1408,1314,1266,29993,29994,29994,29995]} 1. e4 {[%emt 0:00:04]} c5 {[%emt 0:00:06]} 2. Nf3 {[%emt 0:00:06]} Nc6 {[%emt 0:00:02]} 3. Bb5 {[%emt 0:00:07]} g6 {[%emt 0:00:06]} 4. Bxc6 {[%emt 0:00:06]} dxc6 {[%emt 0:00:03]} 5. d3 {[%emt 0:00:10]} Bg7 {[%emt 0:00:05]} 6. h3 {[%emt 0:00:07]} Qc7 {[%emt 0:00:14]} 7. a4 {[%emt 0:02:25]} a5 {[%emt 0:04:05]} 8. O-O {[%emt 0:00:58][%cal Oe4e5]} h6 {[%emt 0:01:09] [#]} (8... e5 $11) 9. e5 $1 $14 {[%emt 0:07:05]} g5 {[%emt 0:08:00][%cal Og5g4] Wards off Bf4} (9... Bxe5 10. Nxe5) 10. Nbd2 {[%emt 0:12:44][%cal Bb1d2,Bd2c4,Bc4e3][%mdl 32]} g4 {[%emt 0:02:31]} 11. hxg4 {[%emt 0:02:14]} Bxg4 {[%emt 0:00:29]} 12. Nc4 {[%emt 0:03:51]} b5 {[%emt 0:16:32]} 13. Ne3 {[%emt 0:07:19]} h5 {[%emt 0:00:43]} 14. Re1 {[%emt 0:05:39]} e6 {[%emt 0:06:00]} 15. Qe2 {[%emt 0:03:18]} Ne7 {[%emt 0:07:12]} 16. axb5 {[%emt 0:07:56]} Ng6 {[%emt 0:04:22] [#] This costs Black the game.} (16... cxb5 $16 17. Nxg4 hxg4) 17. b6 $1 $18 {[%emt 0:07:14][%mdl 512]} Qxb6 {[%emt 0:01:21]} 18. Nc4 {[%emt 0:03:22]} Qd8 {[%emt 0:08:27]} 19. Qe3 {[%emt 0:07:00] Strongly threatening Nd6+.} Bf8 {[%emt 0:11:57]} 20. Nfd2 {[%emt 0:03:22][%cal Bf3d2,Bd2e4,Be4f6][%mdl 32]} Nh4 {[%emt 0:09:23]} 21. Ne4 {[%emt 0:01:31] Nf6+ would now be deadly. A dynamic duo of knights.} Nf5 $2 {[%emt 0:00:47]} (21... Be7 22. Nf6+ (22. Nxc5 Nf5 $18) 22... Bxf6) 22. Nf6+ {[%emt 0:02:12]} Qxf6 {[%emt 0:00:54]} 23. Qe4 {[%emt 0:02:06]} Qg6 {[%emt 0:02:06]} 24. Qxc6+ {[%emt 0:00:12]} (24. Nxa5 Nd4 25. Nb3 Rxa1 26. Qxg6 fxg6 $19) 24... Ke7 {[%emt 0:00:08]} 25. Qb7+ {[%emt 0:00:12] Weighted Error Value: White=0.05 (flawless) /Black=0.60.  Mistake:       	---       	Black=3      Inaccurate:     	White=1     	Black=1      OK:         	White=6     	Black=6      Best:        	White=3     	Black=1      Brilliant:      	White=1     	---} 1-0

[Event "Mitropa Cup Open 2024"]
[Site "Apolda"]
[Date "2024.02.23"]
[Round "9.5"]
[White "Moroni, Luca Jr"]
[Black "Girel, Joseph"]
[Result "0-1"]
[ECO "D32"]
[WhiteElo "2601"]
[BlackElo "2492"]
[Annotator "TA"]
[PlyCount "76"]
[EventDate "2024.02.15"]
[EventType "team-tourn"]
[EventCountry "GER"]
[SourceTitle "playchess.com"]
[Source "ChessBase"]
[SourceQuality "1"]
[WhiteTeam "Italy"]
[BlackTeam "France"]
[WhiteTeamCountry "ITA"]
[BlackTeamCountry "FRA"]
[TimeControl "40/5400+30:1800+30"]

{[%evp 12,76,58,40,37,46,27,26,29,0,0,3,16,5,21,0,0,0,2,-31,0,-17,-13,-46,-51,-67,-21,-104,-96,-88,-99,-88,-70,-265,-265,-277,-270,-288,-270,-500,-468,-504,-506,-587,-541,-514,-558,-543,-380,-432,-436,-428,-415,-796,-769,-963,-734,-715,-687,-1456,-1452,-1307,-518,-29981,-6406,-29993,-29994]} 1. d4 {[%emt 0:00:03]} d5 {[%emt 0:00:49]} 2. c4 {[%emt 0:00:31]} e6 {[%emt 0:00:15]} 3. Nf3 {[%emt 0:00:30]} Nf6 {[%emt 0:00:31]} 4. Nc3 {[%emt 0:00:05]} c5 {[%emt 0:01:46]} 5. cxd5 {[%emt 0:06:19]} exd5 {[%emt 0:00:26]} 6. Bg5 {[%emt 0:02:06]} Be6 {[%emt 0:00:25]} 7. e3 {[%emt 0:00:05]} c4 {[%emt 0:00:57]} 8. Be2 {[%emt 0:02:42]} Bb4 {[%emt 0:04:41]} 9. O-O {[%emt 0:02:14][%cal Oe3e4]} O-O {[%emt 0:01:27] White has an edge.} 10. Rc1 {[%emt 0:05:15][%cal Oe3e4]} Nbd7 {[%emt 0:04:00]} 11. Ne5 {[%emt 0:08:51]} Bxc3 {[%emt 0:17:42]} 12. bxc3 {[%emt 0:02:21]} h6 {[%emt 0:01:50]} 13. Bf4 {[%emt 0:14:46]} Bf5 {[%emt 0:08:36]} 14. h3 {[%emt 0:05:22]} Re8 {[%emt 0:03:44]} 15. Qa4 {[%emt 0:02:03]} a6 {[%emt 0:02:47]} 16. Qb4 {[%emt 0:06:40]} Re6 {[%emt 0:03:26]} 17. f3 {[%emt 0:05:11]} b5 {[%emt 0:04:02]} 18. a4 {[%emt 0:02:21]} a5 {[%emt 0:17:01]} (18... Nxe5 $15 19. dxe5 Nd7 20. axb5 Rb8 (20... Nxe5 21. Qc5 $15)) 19. Qa3 {[%emt 0:01:34] [#]} (19. Qxb5 Rb6 20. Nxd7 (20. Nc6 $2 Qe8 $19) 20... Rxb5 21. Nxf6+ Qxf6 $15) (19. Qb2 $1 $11 {remains equal.}) 19... b4 $1 $36 {[%emt 0:01:19][%mdl 2560] Black is in control.} 20. cxb4 {[%emt 0:01:23]} (20. Qb2 b3) 20... Qe7 {[%emt 0:00:16]} 21. e4 {[%emt 0:05:57]} axb4 {[%emt 0:00:24]} (21... dxe4 22. Bxc4 (22. Rxc4 Nd5 $11) 22... axb4 23. Qb3 $16) 22. Qb2 {[%emt 0:00:33] This move loses the game for White.} (22. Qe3 $15 Bg6 (22... dxe4 23. Bxc4 Rxa4 24. fxe4 $11) (22... Nxe5 23. dxe5 Rxe5 24. Bxe5 $11) 23. Ra1) 22... c3 $19 {[%emt 0:05:34]} (22... dxe4 23. Bxc4 (23. Rxc4 Nd5 $15) 23... exf3 24. Rxf3 $14) 23. Qb3 {[%emt 0:00:46]} dxe4 {[%emt 0:00:36]} 24. Bc4 {[%emt 0:04:27]} Nb6 {[%emt 0:04:31] ...Nxc4 would now be deadly.} 25. g4 $2 {[%emt 0:02:32]} (25. fxe4 {might work better.} Nxc4 (25... Nxe4 $2 26. Be3 $19) 26. exf5) 25... Nxc4 {[%emt 0:03:10]} 26. Qxc4 {[%emt 0:01:40]} Bh7 {[%emt 0:01:27]} 27. Nc6 {[%emt 0:02:04]} Qb7 {[%emt 0:04:26]} 28. Nxb4 {[%emt 0:06:42]} Rc8 {[%emt 0:00:05]} 29. Qb3 {[%emt 0:02:03]} Rb6 {[%emt 0:00:19]} 30. Rxc3 {[%emt 0:00:12]} Rxc3 {[%emt 0:00:14]} (30... Rxb4 $2 31. Qxb4 (31. Rxc8+ Qxc8 32. Qxb4 Nd7 $18) 31... Qxb4 32. Rxc8+ $18) 31. Qxc3 {[%emt 0:00:03]} Rxb4 {[%emt 0:00:08]} 32. a5 {[%emt 0:00:02]} (32. Rc1 $142 Bg6 (32... exf3 33. Qc8+ Qxc8 34. Rxc8+) 33. Qc8+ Qxc8 34. Rxc8+ Kh7 35. fxe4) 32... Nd5 {[%emt 0:00:34][%csl LRc3,LRf4]} 33. Qc5 {[%emt 0:00:07]} Rb1 {[%emt 0:04:42]} 34. Rxb1 {[%emt 0:03:22]} Qxb1+ {[%emt 0:00:06]} 35. Bc1 {[%emt 0:00:05][%cal Rc5c8]} Bg6 {[%emt 0:01:11] Strongly threatening ...Nf4.} (35... exf3 36. Qc8#) 36. a6 {[%emt 0:00:01]} exf3 {[%emt 0:02:26]} (36... Qa2 $142 37. Qb5 exf3) 37. a7 {[%emt 0:00:50]} (37. Qxd5 $19 Qxc1+ 38. Kf2) 37... Qa2 {[%emt 0:00:40]} (37... Qe4 $142 38. a8=Q+ Kh7 39. Qc3 Qe2 (39... Nxc3 $2 40. Qxe4 Bxe4 41. Bd2 $19) 40. Qxf3 Qxf3 41. Qxd5 Qxd5 42. Kf2 Qa2+ (42... Qxd4+ 43. Ke2 Bd3+ 44. Ke1 g5 45. h4 gxh4 46. g5 Bb5 47. g6+ fxg6 48. Bf4 g5 49. Bc1 Qd3 50. Kf2 Qg3#) 43. Kf3 Bd3 (43... Qh2 $2 44. Bf4 $19) 44. g5 Qe2+ 45. Kg3 hxg5 (45... Qe1+ {is a self mate.} 46. Kf3 Kg6 47. Be3 Kf5 48. Bf2 Qe4+ 49. Kg3 Bf1 50. Be3 Qg2+ 51. Kh4 Qxh3#) 46. Bxg5 Be4 (46... Qe1+ {leads to mate.} 47. Kf3 f6 48. Be3 Qe2+ 49. Kg3 Be4 50. Bf4 Qg2+ 51. Kh4 g5+ 52. Kh5 Qxh3#) 47. Kf4 f6 (47... Qf3+ {gets mated.} 48. Ke5 Qf5+ 49. Kd6 Qd5+ 50. Kc7 Qc6+ 51. Kd8 Bf5 52. Ke7 Kg8 53. h4 Qd7#) 48. Bxf6 gxf6 (48... Qf3+ 49. Ke5 Qf5+ 50. Kd6 Qd5+ 51. Kc7 Qc6+ 52. Kd8 Qd6+ 53. Kc8 Bc6 54. Be5 Qd7+ 55. Kb8 Qb7#) 49. Kg3 Qg2+ 50. Kh4 Qg5#) 38. Bb2 {[%emt 0:00:05]} Qxb2 {[%emt 0:00:57] Weighted Error Value: White=0.93/Black=0.54.  Loses game:     	White=1     	---        Mistake:       	White=3     	Black=1      Inaccurate:     	White=4     	Black=2      OK:         	White=6     	Black=11     Best:        	White=2     	Black=4      Brilliant:      	---       	Black=1} 0-1

[Event "Mitropa Cup Open 2024"]
[Site "Apolda"]
[Date "2024.02.23"]
[Round "9.6"]
[White "Makkar, Rajat"]
[Black "Brunello, Sabino"]
[Result "0-1"]
[ECO "A35"]
[WhiteElo "2453"]
[BlackElo "2512"]
[Annotator "TA"]
[PlyCount "80"]
[EventDate "2024.02.15"]
[EventType "team-tourn"]
[EventCountry "GER"]
[SourceTitle "playchess.com"]
[Source "ChessBase"]
[SourceQuality "1"]
[WhiteTeam "France"]
[BlackTeam "Italy"]
[WhiteTeamCountry "FRA"]
[BlackTeamCountry "ITA"]
[TimeControl "40/5400+30:1800+30"]

{[%evp 11,79,39,57,51,57,47,62,52,62,58,49,49,69,60,68,66,55,75,66,70,64,77,83,89,78,94,114,102,111,0,8,0,97,96,109,63,79,58,29,26,59,47,70,91,95,120,151,0,0,0,0,-112,-112,-347,-360,-656,-644,-1660,-1608,-1612,-1635,-29979,-29980,-29980,-29981,-29995,-29990,-29996,-29997,-29999]} 1. Nf3 {[%emt 0:00:13]} c5 {[%emt 0:00:55]} 2. c4 {[%emt 0:00:44]} Nc6 {[%emt 0:01:22]} 3. Nc3 {[%emt 0:00:59]} g6 {[%emt 0:01:25]} 4. e3 {[%emt 0:02:15]} Bg7 {[%emt 0:14:18]} 5. d4 {[%emt 0:01:39]} d6 {[%emt 0:00:06]} 6. d5 {[%emt 0:03:32]} Na5 {[%emt 0:01:23]} 7. Bd3 {[%emt 0:00:14]} Nf6 {[%emt 0:02:49]} 8. h3 {[%emt 0:01:00]} O-O {[%emt 0:03:49]} 9. O-O {[%emt 0:03:13] White is slightly better.} e5 {[%emt 0:01:50][%cal Oe5e4]} 10. e4 {[%emt 0:10:20]} a6 {[%emt 0:00:45]} 11. a3 {[%emt 0:05:55]} b5 {[%emt 0:06:31]} 12. cxb5 {[%emt 0:00:32]} c4 {[%emt 0:01:02]} 13. Bc2 {[%emt 0:00:12]} axb5 {[%emt 0:02:19]} 14. Nxb5 {[%emt 0:00:06]} Bd7 {[%emt 0:04:23]} 15. a4 {[%emt 0:04:28]} (15. Nxd6 Qe7 $15) 15... Qb8 {[%emt 0:13:22]} 16. Bd2 $1 {[%emt 0:03:16]} Bxb5 {[%emt 0:04:54]} 17. axb5 {[%emt 0:00:08]} Qxb5 {[%emt 0:01:06]} 18. Ra4 {[%emt 0:01:13]} Nb7 {[%emt 0:05:18]} 19. Rb4 {[%emt 0:04:06]} Qa6 {[%emt 0:00:14]} 20. Ra4 {[%emt 0:01:14]} ({White should try} 20. Be3 $16) 20... Qb5 $11 {[%emt 0:00:19]} 21. Rb4 {[%emt 0:00:09]} (21. Bc3 $11) 21... Qa6 $16 {[%emt 0:00:04]} 22. Be3 {[%emt 0:00:14]} Rfb8 {[%emt 0:07:45]} 23. Rb6 {[%emt 0:10:56]} ({White should play} 23. Qe2 $16) 23... Qa2 $1 $14 {[%emt 0:02:11]} 24. Nd2 {[%emt 0:00:28] aiming for Bb1.} Nd7 $1 {[%emt 0:14:10][%cal Bf6d7,Bd7c5,Bc5d3,Bd3b2,Bb2d1][%mdl 32]} 25. Rc6 {[%emt 0:06:01]} Nbc5 {[%emt 0:01:59]} 26. Bb1 {[%emt 0:01:25]} Qxb2 {[%emt 0:00:50] Hoping for ...Ra1.} 27. Nxc4 {[%emt 0:00:58]} (27. Rxd6 $2 Ra1 28. Bxc5 Nxc5 29. Nxc4 Qb5 $19 (29... Qxb1 $2 30. Qxb1 Rbxb1 31. Rd8+ Bf8 32. Rxb1 $19)) 27... Qb4 {[%emt 0:00:50]} 28. Nxd6 {[%emt 0:03:59] Qf3 would now be deadly.} Ra1 {[%emt 0:00:15] [#] Threatens to win with ...Bf8.} 29. Bxc5 $2 {[%emt 0:05:12]} (29. Qf3 $1 $16 {[%cal Rf3f7]} f5 30. Bd3) 29... Nxc5 $11 {[%emt 0:00:46]} 30. Qf3 $1 {[%emt 0:03:26]} f5 {[%emt 0:02:11]} 31. Bd3 {[%emt 0:03:33]} (31. Bc2 $11 Rxf1+ 32. Kxf1) 31... Ra3 $17 {[%emt 0:02:53]} 32. Rd1 {[%emt 0:02:56] This costs White the game.} (32. exf5 $17 Rxd3 33. Qe2) 32... Nxd3 $19 {[%emt 0:00:19]} (32... Rxd3 33. Rxd3 Nxd3 34. Qxd3 $14) 33. Nxf5 $2 {[%emt 0:03:43]} (33. Qe2 Nf4 34. Qc4) 33... Nb2 {[%emt 0:03:12]} 34. Qg4 {[%emt 0:01:07] [#] And now Rdc1 would win.} gxf5 {[%emt 0:00:14]} 35. Qxf5 {[%emt 0:00:03]} Nxd1 {[%emt 0:00:47]} 36. d6 {[%emt 0:00:36]} Rf8 {[%emt 0:00:53] Black mates.} 37. Qe6+ {[%emt 0:00:30]} Kh8 {[%emt 0:00:15]} 38. d7 {[%emt 0:00:38]} Qe1+ {[%emt 0:00:21]} (38... Rxf2 39. d8=Q+ (39. d8=R+ $2 Rf8 $19) 39... Rf8 40. Qxd1 $16) 39. Kh2 {[%emt 0:00:03]} Nxf2 {[%emt 0:00:13][%csl Gf2][%cal Re1h1]} ({Worse is} 39... Rxf2 40. d8=Q+ (40. d8=B $2 {gets mated.} Rxg2+ 41. Kxg2 Qg3+ 42. Kh1 Nf2#) 40... Rf8 41. Qxf8+ (41. Qg5 Ra7 $11) 41... Bxf8 42. Qxe5+ (42. Qf6+ Kg8 $11) 42... Kg8 43. Qe6+ Kh8 44. Qf6+ Kg8 45. Qe6+ Kh8 46. Qe5+ Kg8 47. Qg5+ Kh8 48. Qe5+ $11) 40. Rc8 {[%emt 0:00:31]} Qh1# {[%emt 0:00:05] Weighted Error Value: White=0.80/Black=0.05 (flawless) .  Loses game:     	White=1     	---        Mistake:       	White=6     	---        Inaccurate:     	White=1     	---        OK:         	White=5     	Black=8      Best:        	White=3     	Black=5      Strong:       	White=2     	Black=2} 0-1

[Event "Mitropa Cup Open 2024"]
[Site "Apolda"]
[Date "2024.02.23"]
[Round "9.7"]
[White "Carnicelli, Valerio"]
[Black "Velten, Paul"]
[Result "0-1"]
[ECO "B12"]
[WhiteElo "2427"]
[BlackElo "2470"]
[Annotator "TA"]
[PlyCount "93"]
[EventDate "2024.02.15"]
[EventType "team-tourn"]
[EventCountry "GER"]
[SourceTitle "playchess.com"]
[Source "ChessBase"]
[SourceQuality "1"]
[WhiteTeam "Italy"]
[BlackTeam "France"]
[WhiteTeamCountry "ITA"]
[BlackTeamCountry "FRA"]
[TimeControl "40/5400+30:1800+30"]

{[%evp 13,93,14,19,19,15,2,8,8,14,8,8,0,36,12,4,6,7,7,7,7,19,8,39,17,27,19,24,16,33,23,32,31,41,41,40,0,0,0,0,0,0,-64,-14,-5,0,0,0,0,0,0,11,-94,-95,-100,-99,-258,-265,-262,-269,-261,-268,-272,-268,-368,-364,-381,0,-1242,-1178,-1696,-1024,-1638,-1531,-1879,-2036,-5210,-3979,-6520,-5289,-29977,-29978,-29985]} 1. e4 {[%emt 0:00:03]} c6 {[%emt 0:00:42]} 2. d4 {[%emt 0:00:04]} d5 {[%emt 0:00:23]} 3. e5 {[%emt 0:00:04]} Bf5 {[%emt 0:00:19]} 4. Nd2 {[%emt 0:00:07]} e6 {[%emt 0:00:32]} 5. Nb3 {[%emt 0:00:13]} Nd7 {[%emt 0:00:11]} 6. Nf3 {[%emt 0:00:09]} c5 {[%emt 0:01:12] B12: Caro-Kann: Advance Variation.} 7. dxc5 {[%emt 0:00:46]} Bxc5 {[%emt 0:00:06]} 8. Nxc5 {[%emt 0:00:12]} Nxc5 {[%emt 0:00:08]} 9. Bb5+ {[%emt 0:00:15]} Nd7 {[%emt 0:00:16]} 10. O-O {[%emt 0:00:42]} Ne7 {[%emt 0:01:31]} 11. Nd4 {[%emt 0:02:13]} O-O {[%emt 0:02:24]} 12. Bg5 {[%emt 0:02:06]} Bg6 {[%emt 0:00:31]} 13. Bxe7 {[%emt 0:02:06]} (13. c4 {keeps more tension.} Nxe5 14. cxd5 f6 15. Nxe6 Qb6 16. Nxf8 Kxf8 17. d6) 13... Qxe7 {[%emt 0:00:08]} 14. Bxd7 {[%emt 0:00:06]} Qxd7 {[%emt 0:00:09]} 15. a4 $146 {[%emt 0:01:07]} ({Predecessor:} 15. Re1 Rfc8 16. c3 b5 17. h4 h6 18. h5 Bh7 19. Re3 Rab8 20. Rg3 Kh8 21. Qg4 {0-1 Rublevsky,S (2637)-Faizrakhmanov,R (2480) Kazan Mayors Cup rapid 2022 (2)}) 15... Rac8 {[%emt 0:01:16]} 16. c3 {[%emt 0:01:23]} Qd8 {[%emt 0:10:26]} 17. Re1 {[%emt 0:02:54]} Qg5 {[%emt 0:00:23]} 18. Qc1 {[%emt 0:01:22]} Qh4 {[%emt 0:04:25]} 19. Qe3 {[%emt 0:03:20]} a6 {[%emt 0:01:19]} 20. a5 {[%emt 0:05:27]} Rc7 {[%emt 0:01:44]} 21. Ra4 {[%emt 0:02:12]} Qe7 {[%emt 0:01:57]} 22. Rb4 {[%emt 0:04:35]} Rfc8 {[%emt 0:04:21]} 23. Ra1 {[%emt 0:11:22]} Rc4 {[%emt 0:01:05]} 24. Raa4 {[%emt 0:05:34]} h6 {[%emt 0:04:44]} 25. h3 {[%emt 0:03:35]} R8c5 {[%emt 0:02:28]} 26. Nb3 $1 {[%emt 0:04:56]} Rb5 {[%emt 0:03:47]} 27. Qd2 {[%emt 0:07:10]} ({White should try} 27. Rxb5 $11 Rxa4 28. Rb6) 27... Qc7 {[%emt 0:18:02]} ({Better is} 27... Bc2 $1 $15 28. Rxc4 (28. Qxc2 $2 Rbxb4 29. Ra1 Qc7 $19) 28... dxc4 29. Qxc2 cxb3) 28. f4 $1 $11 {[%emt 0:04:36]} Be4 {[%emt 0:02:14]} 29. Qe2 {[%emt 0:05:05]} Rbxb4 {[%emt 0:01:14]} 30. Rxb4 {[%emt 0:01:12]} Bg6 {[%emt 0:00:16]} 31. Qd2 {[%emt 0:04:10]} Bb1 {[%emt 0:02:37]} 32. Rxc4 {[%emt 0:03:21]} (32. Rb6 $11 {keeps the balance.}) 32... Qxc4 $17 {[%emt 0:00:47]} (32... dxc4 33. Qd6 Qxd6 34. exd6 $18) 33. Nd4 {[%emt 0:00:12]} Qa2 {[%emt 0:00:22]} 34. f5 $2 {[%emt 0:06:35]} (34. g4 $17) 34... Bxf5 $19 {[%emt 0:00:44]} ({Not} 34... Qxa5 35. fxe6 fxe6 36. Nxe6 Qb6+ 37. Nd4 $11) 35. Nxf5 {[%emt 0:01:20]} Qb1+ {[%emt 0:03:33]} ({Much less strong is} 35... exf5 36. Qc2 $19) 36. Kh2 {[%emt 0:00:05]} Qxf5 {[%emt 0:00:07]} 37. Qd4 {[%emt 0:01:21]} Qe4 {[%emt 0:04:46]} 38. Qxe4 {[%emt 0:03:35]} dxe4 {[%emt 0:00:16]} 39. h4 {[%emt 0:04:43] [#]} h5 $2 {[%emt 0:03:19]} ({Black should play} 39... f5 $1 $19 40. Kg3 g5 41. hxg5 hxg5) 40. Kg3 $2 {[%emt 0:02:27][%mdl 8192]} (40. c4 $11) 40... f5 $19 {[%emt 0:00:14]} 41. b4 {[%emt 0:33:48]} Kf7 {[%emt 0:30:16]} 42. c4 {[%emt 0:00:16]} Ke7 {[%emt 0:00:04]} 43. Kf4 {[%emt 0:02:00]} Kd7 {[%emt 0:00:08]} 44. b5 {[%emt 0:00:04]} Kc7 {[%emt 0:00:04]} 45. Ke3 {[%emt 0:00:10]} b6 {[%emt 0:00:50]} 46. c5 {[%emt 0:00:19]} bxa5 {[%emt 0:00:24]} (46... bxc5 47. b6+ Kc6 48. g3 $11) 47. Kd4 {[%emt 0:04:38]} 0-1

[Event "Mitropa Cup Open 2024"]
[Site "Apolda"]
[Date "2024.02.23"]
[Round "9.8"]
[White "Decuigniere, Tom"]
[Black "Perossa, Nicolas"]
[Result "1-0"]
[ECO "E71"]
[WhiteElo "2401"]
[BlackElo "2277"]
[Annotator "TA"]
[PlyCount "125"]
[EventDate "2024.02.15"]
[EventType "team-tourn"]
[EventCountry "GER"]
[SourceTitle "playchess.com"]
[Source "ChessBase"]
[SourceQuality "1"]
[WhiteTeam "France"]
[BlackTeam "Italy"]
[WhiteTeamCountry "FRA"]
[BlackTeamCountry "ITA"]
[TimeControl "40/5400+30:1800+30"]

{[%evp 33,125,-35,27,24,69,36,48,25,65,70,70,63,72,65,89,37,52,0,85,83,95,84,102,66,44,55,54,42,58,10,60,54,26,31,37,38,37,39,40,0,23,25,55,65,79,72,97,102,118,97,105,87,111,82,80,82,129,93,97,53,47,49,58,55,256,250,805,759,584,538,813,808,1439,478,478,478,477,452,677,700,998,965,952,931,29989,29990,29992,29992,29992,29993,29993,29994,29994,29995]} 1. d4 {[%emt 0:00:03]} Nf6 {[%emt 0:00:05]} 2. c4 {[%emt 0:00:05]} g6 {[%emt 0:00:04]} 3. Nc3 {[%emt 0:00:26]} Bg7 {[%emt 0:00:04]} 4. e4 {[%emt 0:00:06]} d6 {[%emt 0:00:04]} 5. h3 {[%emt 0:00:14]} e5 {[%emt 0:00:05]} 6. d5 {[%emt 0:01:01] E71: King's Indian: 4 e4 d6 5 h3.} a5 {[%emt 0:00:05]} 7. Be3 {[%emt 0:01:07]} Na6 {[%emt 0:00:06]} 8. g4 {[%emt 0:05:56]} Nd7 {[%emt 0:00:34]} 9. Qd2 $146 {[%emt 0:03:02]} ({Predecessor:} 9. Nf3 Ndc5 10. a3 a4 11. Nd2 Bd7 12. Rg1 h6 13. Qe2 Bf6 14. O-O-O Bg5 15. Kb1 {½-½ Narayanan,S (2663)-Rapport,R (2754) Bundesliga 2223 2022 (8.2)}) 9... h5 {[%emt 0:12:42]} 10. g5 {[%emt 0:05:34]} Ndc5 {[%emt 0:06:22]} 11. h4 {[%emt 0:01:11]} O-O {[%emt 0:02:13]} 12. f3 {[%emt 0:03:21]} Bd7 {[%emt 0:07:40]} 13. Nh3 {[%emt 0:04:31]} b6 {[%emt 0:18:18]} 14. Rg1 {[%emt 0:04:22]} Nb4 {[%emt 0:06:28]} 15. Nf2 {[%emt 0:02:42]} Kh7 {[%emt 0:03:52]} 16. Rb1 {[%emt 0:05:30]} Nba6 {[%emt 0:07:32]} 17. Nh3 {[%emt 0:13:48]} Qe7 {[%emt 0:08:56]} (17... f6 $15) 18. b3 $11 {[%emt 0:11:53]} Rae8 {[%emt 0:05:12]} 19. Ke2 {[%emt 0:07:02]} Ra8 {[%emt 0:02:06]} 20. Rg3 {[%emt 0:09:15]} Nb4 {[%emt 0:03:07]} 21. Kf2 {[%emt 0:01:08]} Nba6 {[%emt 0:02:39]} 22. Kg1 {[%emt 0:01:18]} Rg8 {[%emt 0:03:01]} 23. Kh2 {[%emt 0:00:17]} Raf8 {[%emt 0:00:25]} 24. Ne2 {[%emt 0:06:09]} (24. a3 $16) 24... Ra8 $14 {[%emt 0:01:07]} (24... f5 25. gxf6 Bxf6 26. Ng5+ Bxg5 27. Bxg5 $16) 25. Nc3 {[%emt 0:01:03]} Raf8 $1 {[%emt 0:00:19]} 26. Nb5 {[%emt 0:00:14]} Rc8 {[%emt 0:01:39]} 27. Qd1 {[%emt 0:01:32]} Rcd8 {[%emt 0:01:08]} 28. Rb2 {[%emt 0:00:14]} c6 {[%emt 0:08:37]} 29. Nc3 {[%emt 0:00:47]} Nc7 $1 {[%emt 0:00:00]} 30. a3 {[%emt 0:00:32]} cxd5 {[%emt 0:00:00]} 31. cxd5 {[%emt 0:00:58]} (31. Nxd5 Nxd5 32. cxd5 Ra8 $11) (31. exd5 $14 e4 32. Bd4) 31... Qe8 {[%emt 0:00:00]} (31... Ra8 $1 $11) 32. b4 {[%emt 0:01:24]} axb4 {[%emt 0:00:00]} 33. axb4 {[%emt 0:00:50]} Na4 {[%emt 0:00:00]} 34. Nxa4 Bxa4 {[%emt 0:00:00]} 35. Qd2 {[%emt 0:05:16]} Rb8 {[%emt 0:00:00]} 36. Ng1 {[%emt 0:00:47]} Bb5 {[%emt 0:00:55]} 37. Ne2 {[%emt 0:00:16]} Qe7 {[%emt 0:00:50]} 38. Rg1 {[%emt 0:01:19]} Rgf8 {[%emt 0:01:40]} 39. Rc2 {[%emt 0:02:18]} Rfc8 {[%emt 0:01:33]} 40. Bh3 {[%emt 0:01:43]} Bd7 {[%emt 0:00:31]} 41. Bxd7 {[%emt 0:30:43]} Qxd7 {[%emt 0:30:09]} 42. Rgc1 {[%emt 0:00:22]} Nb5 {[%emt 0:00:00]} 43. Rxc8 {[%emt 0:00:00]} Rxc8 {[%emt 0:00:00]} 44. Bxb6 {[%emt 0:00:00]} Rb8 {[%emt 0:00:00]} (44... Ra8 $142) 45. Bf2 {[%emt 0:00:00]} f5 {[%emt 0:00:00]} 46. Ng3 {[%emt 0:00:00]} fxe4 $1 {[%emt 0:00:00]} 47. Nxe4 {[%emt 0:00:00]} Qf5 {[%emt 0:00:00]} 48. Kg2 {[%emt 0:00:00]} Rf8 $2 {[%emt 0:00:00]} (48... Ra8 $14) 49. Qd3 $18 {[%emt 0:00:00]} Nd4 $2 {[%emt 0:00:00]} (49... Rf7 50. Qe2 (50. Qxb5 $2 Qxf3+ 51. Kg1 Qxe4 $19) (50. Rc6 Rf8 $18) 50... Qf4) 50. Bxd4 $18 {[%emt 0:00:00]} exd4 {[%emt 0:00:00]} 51. b5 {[%emt 0:01:41]} Kh8 {[%emt 0:01:55]} 52. Rc7 {[%emt 0:01:21]} Ra8 {[%emt 0:02:38]} 53. Nf2 {[%emt 0:01:02]} (53. b6 $142 Ra2+ 54. Rc2 Qxd5 55. Rxa2 Qxa2+ 56. Nf2) 53... Qxd3 $18 {[%emt 0:01:05]} 54. Nxd3 {[%emt 0:00:01]} Rb8 {[%emt 0:00:35]} 55. Nf4 {[%emt 0:00:35]} Rxb5 {[%emt 0:00:48]} (55... Kg8 $142 56. Kf2 (56. Nxg6 d3 $18) (56. Ne6 Bh8 $18) 56... Rxb5 57. Nxg6 d3) 56. Nxg6+ $18 {[%emt 0:00:22]} Kg8 {[%emt 0:00:37]} 57. Ne7+ {[%emt 0:00:22]} Kf8 {[%emt 0:00:36]} 58. Nf5 {[%emt 0:00:59]} d3 {[%emt 0:00:35] [#]} 59. g6 $1 {[%emt 0:00:51]} (59. Rxg7 Rb2+ 60. Kg3 (60. Kf1 $2 Rb1+ 61. Kf2 d2 $19) 60... d2 $15) ({Less strong is} 59. Rc8+ Kf7 60. Nxd6+ Ke7 61. Nf5+ (61. Nxb5 d2 $11) 61... Kd7 $16) 59... Rb8 {[%emt 0:00:24]} 60. Rf7+ {[%emt 0:00:07]} Ke8 {[%emt 0:00:21]} 61. Nxg7+ {[%emt 0:00:05]} Kd8 {[%emt 0:00:04]} 62. Ne6+ {[%emt 0:00:06]} Ke8 {[%emt 0:00:03]} 63. Rf8+ {[%emt 0:00:07]} 1-0